[Event "Titled Tuesday Blitz August 1 Early 2023"]
[White "Mahdavi, Reza"]
[Black "To, Nhat Minh"]
[WhiteFideId "12595926"]
[BlackFideId "729019"]
[WhiteElo "2801"]
[BlackElo "2543"]
[Result "0-1"]
[Round "2"]
[TimeControl "180+1"]
[Date "2023.08.01"]
[WhiteClock "0:00:16"]
[BlackClock "0:00:08"]
[Board "53"]

1. e4 {[%clk 0:02:52]}  c5 {[%clk 0:02:58]} 2. Nf3 {[%clk 0:02:49]}  d6 {[%clk 0:02:59]} 3. d4 {[%clk 0:02:50]}  cxd4 {[%clk 0:03:00]} 4. Qxd4 {[%clk 0:02:51]}  Nf6 {[%clk 0:03:00]} 5. Bg5 {[%clk 0:02:50]}  Nc6 {[%clk 0:03:00]} 6. Bb5 {[%clk 0:02:51]}  Bd7 {[%clk 0:03:00]} 7. Bxc6 {[%clk 0:02:52]}  Bxc6 {[%clk 0:03:01]} 8. Nc3 {[%clk 0:02:53]}  e6 {[%clk 0:03:02]} 9. O-O-O {[%clk 0:02:51]}  Be7 {[%clk 0:03:02]} 10. Qd3 {[%clk 0:02:48]}  Qa5 {[%clk 0:03:00]} 11. h4 {[%clk 0:02:48]}  h6 {[%clk 0:02:59]} 12. Bd2 {[%clk 0:02:48]}  Qa6 {[%clk 0:02:59]} 13. Qxa6 {[%clk 0:02:48]}  bxa6 {[%clk 0:03:00]} 14. Rde1 {[%clk 0:02:49]}  Ng4 {[%clk 0:02:51]} 15. Nd4 {[%clk 0:02:49]}  Bd7 {[%clk 0:02:39]} 16. f3 {[%clk 0:02:49]}  Ne5 {[%clk 0:02:39]} 17. b3 {[%clk 0:02:47]}  O-O {[%clk 0:02:37]} 18. Rd1 {[%clk 0:02:47]}  Rfc8 {[%clk 0:02:33]} 19. Nde2 {[%clk 0:02:48]}  Rab8 {[%clk 0:02:22]} 20. Bf4 {[%clk 0:02:47]}  Bc6 {[%clk 0:02:20]} 21. Be3 {[%clk 0:02:36]}  Rc7 {[%clk 0:02:17]} 22. Nb1 {[%clk 0:02:21]}  a5 {[%clk 0:02:06]} 23. a4 {[%clk 0:02:15]}  Be8 {[%clk 0:01:46]} 24. Nd2 {[%clk 0:02:10]}  Bxa4 {[%clk 0:01:27]} 25. Kb2 {[%clk 0:01:51]}  Bb5 {[%clk 0:01:11]} 26. Nc3 {[%clk 0:01:43]}  a4 {[%clk 0:01:09]} 27. Nxb5 {[%clk 0:01:32]}  Rxb5 {[%clk 0:01:10]} 28. Bd4 {[%clk 0:01:23]}  axb3 {[%clk 0:01:04]} 29. Nxb3 {[%clk 0:01:19]}  Nc4+ {[%clk 0:00:59]} 30. Ka2 {[%clk 0:01:19]}  a5 {[%clk 0:00:47]} 31. Ba1 {[%clk 0:00:44]}  Ne3 {[%clk 0:00:42]} 32. Nd4 {[%clk 0:00:36]}  Rbc5 {[%clk 0:00:28]} 33. Rb1 {[%clk 0:00:26]}  Nxc2 {[%clk 0:00:24]} 34. Rb8+ {[%clk 0:00:25]}  Kh7 {[%clk 0:00:21]} 35. Nb3 {[%clk 0:00:20]}  Rc4 {[%clk 0:00:20]} 36. Bb2 {[%clk 0:00:17]}  a4 {[%clk 0:00:14]} 37. Nd2 {[%clk 0:00:16]}  Rb4 {[%clk 0:00:11]} 38. Ra8 {[%clk 0:00:14]}  d5 {[%clk 0:00:05]} 39. exd5 {[%clk 0:00:14]}  exd5 {[%clk 0:00:06]} 40. Rc1 {[%clk 0:00:13]}  Rbb7 {[%clk 0:00:03]} 41. Rxa4 {[%clk 0:00:13]}  Nb4+ {[%clk 0:00:03]} 42. Kb1 {[%clk 0:00:13]}  Rxc1+ {[%clk 0:00:02]} 43. Bxc1 {[%clk 0:00:14]}  Nd3+ {[%clk 0:00:03]} 44. Kc2 {[%clk 0:00:14]}  Nxc1 {[%clk 0:00:02]} 45. Kxc1 {[%clk 0:00:15]}  Rb4 {[%clk 0:00:02]} 46. Rxb4 {[%clk 0:00:15]}  Bxb4 {[%clk 0:00:03]} 47. Nb3 {[%clk 0:00:16]}  h5 {[%clk 0:00:03]} 48. Kd1 {[%clk 0:00:14]}  Kg6 {[%clk 0:00:02]} 49. Ke2 {[%clk 0:00:14]}  Kf6 {[%clk 0:00:02]} 50. Nd4 {[%clk 0:00:12]}  Bd6 {[%clk 0:00:02]} 51. Nc6 {[%clk 0:00:11]}  g6 {[%clk 0:00:02]} 52. Kf2 {[%clk 0:00:11]}  Ke6 {[%clk 0:00:03]} 53. Nd4+ {[%clk 0:00:10]}  Kd7 {[%clk 0:00:03]} 54. g3 {[%clk 0:00:11]}  Bc5 {[%clk 0:00:04]} 55. Ke3 {[%clk 0:00:11]}  Kd6 {[%clk 0:00:04]} 56. f4 {[%clk 0:00:12]}  f6 {[%clk 0:00:03]} 57. Kd3 {[%clk 0:00:12]}  Bxd4 {[%clk 0:00:03]} 58. Kxd4 {[%clk 0:00:13]}  f5 {[%clk 0:00:03]} 59. Kd3 {[%clk 0:00:11]}  Kc5 {[%clk 0:00:04]} 60. Kc3 {[%clk 0:00:12]}  d4+ {[%clk 0:00:05]} 61. Kd3 {[%clk 0:00:13]}  Kd5 {[%clk 0:00:06]} 62. Kd2 {[%clk 0:00:14]}  Ke4 {[%clk 0:00:07]} 63. Ke2 {[%clk 0:00:15]}  d3+ {[%clk 0:00:07]} 64. Kd2 {[%clk 0:00:16]}  Kf3 {[%clk 0:00:08]} 65. Kxd3 {[%clk 0:00:16]}  Kxg3 {[%clk 0:00:08]} 0-1


[Site "https://www.chess.com"]

[Event "Titled Tuesday Blitz August 1 Early 2023"]
[White "Streltsov, Alexey"]
[Black "Priasmoro, Novendra"]
[WhiteFideId "24104434"]
[BlackFideId "7105029"]
[WhiteElo "2543"]
[BlackElo "2782"]
[Result "0-1"]
[Round "2"]
[TimeControl "180+1"]
[Date "2023.08.01"]
[WhiteClock "0:00:35"]
[BlackClock "0:00:52"]
[Board "54"]

1. d4 {[%clk 0:03:00]}  Nf6 {[%clk 0:03:00]} 2. Bf4 {[%clk 0:03:00]}  g6 {[%clk 0:02:59]} 3. Nc3 {[%clk 0:03:00]}  d5 {[%clk 0:02:59]} 4. e3 {[%clk 0:03:00]}  Bg7 {[%clk 0:02:59]} 5. Nb5 {[%clk 0:03:00]}  Na6 {[%clk 0:02:59]} 6. Nf3 {[%clk 0:03:01]}  c6 {[%clk 0:02:58]} 7. Nc3 {[%clk 0:03:01]}  Qb6 {[%clk 0:02:59]} 8. Rb1 {[%clk 0:02:56]}  Bg4 {[%clk 0:02:52]} 9. Be2 {[%clk 0:02:55]}  Bxf3 {[%clk 0:02:49]} 10. Bxf3 {[%clk 0:02:56]}  Nd7 {[%clk 0:02:50]} 11. O-O {[%clk 0:02:45]}  O-O {[%clk 0:02:47]} 12. Bg4 {[%clk 0:02:27]}  f5 {[%clk 0:02:42]} 13. Be2 {[%clk 0:02:27]}  e5 {[%clk 0:02:43]} 14. dxe5 {[%clk 0:02:27]}  Nxe5 {[%clk 0:02:44]} 15. Nxd5 {[%clk 0:01:57]}  Qd8 {[%clk 0:01:56]} 16. Bxa6 {[%clk 0:01:47]}  bxa6 {[%clk 0:01:51]} 17. Nb4 {[%clk 0:01:47]}  Qb6 {[%clk 0:01:47]} 18. c3 {[%clk 0:01:35]}  a5 {[%clk 0:01:43]} 19. Qb3+ {[%clk 0:01:30]}  Kh8 {[%clk 0:01:44]} 20. Nc2 {[%clk 0:01:30]}  Qxb3 {[%clk 0:01:39]} 21. axb3 {[%clk 0:01:31]}  Rab8 {[%clk 0:01:36]} 22. Nd4 {[%clk 0:01:31]}  Rb6 {[%clk 0:01:34]} 23. Ne6 {[%clk 0:01:29]}  Nd3 {[%clk 0:01:34]} 24. Nxf8 {[%clk 0:01:28]}  Bxf8 {[%clk 0:01:35]} 25. Rfd1 {[%clk 0:01:25]}  Nxf4 {[%clk 0:01:32]} 26. exf4 {[%clk 0:01:22]}  Rxb3 {[%clk 0:01:32]} 27. Rd8 {[%clk 0:01:21]}  Kg7 {[%clk 0:01:32]} 28. Rd7+ {[%clk 0:01:21]}  Kh6 {[%clk 0:01:31]} 29. Rxa7 {[%clk 0:01:22]}  Bg7 {[%clk 0:01:25]} 30. h4 {[%clk 0:01:06]}  Bxc3 {[%clk 0:01:23]} 31. Rd1 {[%clk 0:01:07]}  Bxb2 {[%clk 0:01:16]} 32. Rdd7 {[%clk 0:01:07]}  Kh5 {[%clk 0:01:16]} 33. f3 {[%clk 0:01:01]}  h6 {[%clk 0:01:13]} 34. Kh2 {[%clk 0:00:58]}  Bc1 {[%clk 0:01:10]} 35. g3 {[%clk 0:00:56]}  Rxf3 {[%clk 0:01:10]} 36. Rd6 {[%clk 0:00:52]}  Rxf4 {[%clk 0:01:04]} 37. Rxc6 {[%clk 0:00:49]}  Rf2+ {[%clk 0:01:03]} 38. Kg1 {[%clk 0:00:49]}  Be3 {[%clk 0:01:04]} 39. Re7 {[%clk 0:00:49]}  Rc2+ {[%clk 0:01:02]} 40. Rxe3 {[%clk 0:00:48]}  Rxc6 {[%clk 0:01:03]} 41. Kg2 {[%clk 0:00:49]}  Kg4 {[%clk 0:01:00]} 42. Ra3 {[%clk 0:00:48]}  Rc2+ {[%clk 0:01:00]} 43. Kf1 {[%clk 0:00:48]}  g5 {[%clk 0:00:49]} 44. hxg5 {[%clk 0:00:42]}  hxg5 {[%clk 0:00:50]} 45. Rxa5 {[%clk 0:00:42]}  Rc3 {[%clk 0:00:50]} 46. Kf2 {[%clk 0:00:42]}  Rf3+ {[%clk 0:00:50]} 47. Kg2 {[%clk 0:00:38]}  Rxg3+ {[%clk 0:00:51]} 48. Kh2 {[%clk 0:00:39]}  f4 {[%clk 0:00:52]} 49. Ra2 {[%clk 0:00:37]}  Re3 {[%clk 0:00:51]} 50. Rg2+ {[%clk 0:00:38]}  Kh4 {[%clk 0:00:51]} 51. Ra2 {[%clk 0:00:38]}  f3 {[%clk 0:00:50]} 52. Ra8 {[%clk 0:00:39]}  Re2+ {[%clk 0:00:50]} 53. Kg1 {[%clk 0:00:37]}  Kg3 {[%clk 0:00:51]} 54. Ra1 {[%clk 0:00:36]}  Rg2+ {[%clk 0:00:48]} 55. Kh1 {[%clk 0:00:36]}  Rh2+ {[%clk 0:00:49]} 56. Kg1 {[%clk 0:00:36]}  f2+ {[%clk 0:00:50]} 57. Kf1 {[%clk 0:00:36]}  Rh1+ {[%clk 0:00:51]} 58. Ke2 {[%clk 0:00:35]}  Rxa1 {[%clk 0:00:52]} 0-1


[Site "https://www.chess.com"]

[Event "Titled Tuesday Blitz August 1 Early 2023"]
[White "Dvirnyy, Danyyil"]
[Black "Vlassov, Nikolai"]
[WhiteFideId "817570"]
[BlackFideId "4103360"]
[WhiteElo "2781"]
[BlackElo "2540"]
[Result "1-0"]
[Round "2"]
[TimeControl "180+1"]
[Date "2023.08.01"]
[WhiteClock "0:00:32"]
[BlackClock "0:00:04"]
[Board "55"]

1. Nf3 {[%clk 0:02:56]}  c5 {[%clk 0:02:58]} 2. g3 {[%clk 0:02:56]}  Nc6 {[%clk 0:02:57]} 3. Bg2 {[%clk 0:02:57]}  e5 {[%clk 0:02:58]} 4. e4 {[%clk 0:02:53]}  g5 {[%clk 0:02:55]} 5. d4 {[%clk 0:02:35]}  cxd4 {[%clk 0:02:44]} 6. Nxg5 {[%clk 0:02:26]}  Be7 {[%clk 0:02:35]} 7. Qh5 {[%clk 0:02:07]}  Bxg5 {[%clk 0:02:34]} 8. Bxg5 {[%clk 0:02:08]}  Qb6 {[%clk 0:02:33]} 9. O-O {[%clk 0:02:03]}  d6 {[%clk 0:02:28]} 10. Nd2 {[%clk 0:01:55]}  Be6 {[%clk 0:02:28]} 11. c3 {[%clk 0:01:53]}  dxc3 {[%clk 0:02:19]} 12. bxc3 {[%clk 0:01:53]}  Nge7 {[%clk 0:02:14]} 13. Rab1 {[%clk 0:01:50]}  Qc7 {[%clk 0:02:09]} 14. Rb2 {[%clk 0:01:31]}  O-O-O {[%clk 0:02:07]} 15. Rfb1 {[%clk 0:01:30]}  Rd7 {[%clk 0:01:57]} 16. Bf6 {[%clk 0:01:28]}  Re8 {[%clk 0:01:45]} 17. Qxh7 {[%clk 0:01:24]}  d5 {[%clk 0:01:14]} 18. h4 {[%clk 0:00:54]}  Ng8 {[%clk 0:00:52]} 19. Qg7 {[%clk 0:00:53]}  Nxf6 {[%clk 0:00:50]} 20. Qxf6 {[%clk 0:00:54]}  d4 {[%clk 0:00:21]} 21. cxd4 {[%clk 0:00:54]}  Rxd4 {[%clk 0:00:18]} 22. Nf3 {[%clk 0:00:53]}  Rd6 {[%clk 0:00:12]} 23. Rxb7 {[%clk 0:00:50]}  Qxb7 {[%clk 0:00:12]} 24. Rxb7 {[%clk 0:00:51]}  Kxb7 {[%clk 0:00:13]} 25. Nxe5 {[%clk 0:00:39]}  Nxe5 {[%clk 0:00:12]} 26. Qxe5 {[%clk 0:00:40]}  Rd1+ {[%clk 0:00:11]} 27. Kh2 {[%clk 0:00:40]}  Red8 {[%clk 0:00:09]} 28. Qb5+ {[%clk 0:00:39]}  Kc7 {[%clk 0:00:09]} 29. e5 {[%clk 0:00:39]}  R8d2 {[%clk 0:00:08]} 30. Qb7+ {[%clk 0:00:35]}  Kd8 {[%clk 0:00:08]} 31. Qxa7 {[%clk 0:00:35]}  Rxa2 {[%clk 0:00:07]} 32. Qb8+ {[%clk 0:00:32]}  Ke7 {[%clk 0:00:07]} 33. Qb4+ {[%clk 0:00:33]}  Ke8 {[%clk 0:00:06]} 34. Bc6+ {[%clk 0:00:32]}  Bd7 {[%clk 0:00:06]} 35. Bxd7+ {[%clk 0:00:32]}  Kxd7 {[%clk 0:00:06]} 36. Qg4+ {[%clk 0:00:32]}  Ke7 {[%clk 0:00:06]} 37. Qxd1 {[%clk 0:00:33]}  Rxf2+ {[%clk 0:00:06]} 38. Kh3 {[%clk 0:00:33]}  Rf5 {[%clk 0:00:06]} 39. Qd6+ {[%clk 0:00:34]}  Ke8 {[%clk 0:00:04]} 40. e6 {[%clk 0:00:32]} 1-0


[Site "https://www.chess.com"]

[Event "Titled Tuesday Blitz August 1 Early 2023"]
[White "Krzyzanowski, Marcin"]
[Black "Ibadov, Dashgyn"]
[WhiteFideId "1132199"]
[BlackFideId "24107514"]
[WhiteElo "2779"]
[BlackElo "2536"]
[Result "1-0"]
[Round "2"]
[TimeControl "180+1"]
[Date "2023.08.01"]
[WhiteClock "0:00:05"]
[BlackClock "0:01:04"]
[Board "56"]

1. e4 {[%clk 0:03:00]}  e6 {[%clk 0:02:57]} 2. d4 {[%clk 0:02:59]}  d5 {[%clk 0:02:58]} 3. Nc3 {[%clk 0:02:58]}  Nf6 {[%clk 0:02:58]} 4. e5 {[%clk 0:02:58]}  Nfd7 {[%clk 0:02:58]} 5. Nce2 {[%clk 0:02:58]}  c5 {[%clk 0:02:58]} 6. c3 {[%clk 0:02:59]}  Nc6 {[%clk 0:02:59]} 7. Nf3 {[%clk 0:02:58]}  cxd4 {[%clk 0:02:56]} 8. cxd4 {[%clk 0:02:58]}  f6 {[%clk 0:02:57]} 9. exf6 {[%clk 0:02:54]}  Nxf6 {[%clk 0:02:54]} 10. g3 {[%clk 0:02:42]}  Bd6 {[%clk 0:02:46]} 11. Bg2 {[%clk 0:02:42]}  O-O {[%clk 0:02:46]} 12. O-O {[%clk 0:02:40]}  Bd7 {[%clk 0:02:44]} 13. Bf4 {[%clk 0:02:39]}  Bxf4 {[%clk 0:02:40]} 14. Nxf4 {[%clk 0:02:39]}  Ne4 {[%clk 0:02:41]} 15. Nd3 {[%clk 0:02:05]}  Be8 {[%clk 0:02:35]} 16. h3 {[%clk 0:02:05]}  Bh5 {[%clk 0:02:33]} 17. g4 {[%clk 0:02:04]}  Bg6 {[%clk 0:02:34]} 18. Nde5 {[%clk 0:02:03]}  Qd6 {[%clk 0:02:26]} 19. Rc1 {[%clk 0:02:00]}  Rf4 {[%clk 0:02:24]} 20. Qb3 {[%clk 0:01:39]}  Nxd4 {[%clk 0:02:12]} 21. Nxd4 {[%clk 0:01:13]}  Qxe5 {[%clk 0:02:12]} 22. Qxb7 {[%clk 0:01:14]}  Raf8 {[%clk 0:02:11]} 23. Nc6 {[%clk 0:01:14]}  Qf6 {[%clk 0:02:05]} 24. Ne7+ {[%clk 0:01:09]}  Kh8 {[%clk 0:02:05]} 25. Nxg6+ {[%clk 0:01:05]}  hxg6 {[%clk 0:02:06]} 26. Bxe4 {[%clk 0:00:53]}  Rxe4 {[%clk 0:02:05]} 27. Qxa7 {[%clk 0:00:41]}  Qxb2 {[%clk 0:01:51]} 28. Rb1 {[%clk 0:00:30]}  Qe2 {[%clk 0:01:49]} 29. Qe7 {[%clk 0:00:19]}  Ref4 {[%clk 0:01:39]} 30. Rb7 {[%clk 0:00:19]}  Qe5 {[%clk 0:01:30]} 31. Qh4+ {[%clk 0:00:19]}  Kg8 {[%clk 0:01:29]} 32. Qg3 {[%clk 0:00:19]}  d4 {[%clk 0:01:25]} 33. Qd3 {[%clk 0:00:17]}  Rf3 {[%clk 0:01:23]} 34. Qxg6 {[%clk 0:00:18]}  Rxh3 {[%clk 0:01:20]} 35. Rxg7+ {[%clk 0:00:05]}  Qxg7 {[%clk 0:01:21]} 36. Qxe6+ {[%clk 0:00:05]}  Kh8 {[%clk 0:01:21]} 37. Kg2 {[%clk 0:00:05]}  Rhf3 {[%clk 0:01:17]} 38. Rh1+ {[%clk 0:00:05]}  Qh7 {[%clk 0:01:13]} 39. Rxh7+ {[%clk 0:00:05]}  Kxh7 {[%clk 0:01:14]} 40. Qe4+ {[%clk 0:00:05]}  Kg8 {[%clk 0:01:04]} 41. Qxf3 {[%clk 0:00:05]} 1-0


[Site "https://www.chess.com"]

[Event "Titled Tuesday Blitz August 1 Early 2023"]
[White "Fiorito, Francisco"]
[Black "Remizov, Yaroslav"]
[WhiteFideId "180165"]
[BlackFideId "34134015"]
[WhiteElo "2535"]
[BlackElo "2773"]
[Result "0-1"]
[Round "2"]
[TimeControl "180+1"]
[Date "2023.08.01"]
[WhiteClock "0:00:02"]
[BlackClock "0:00:24"]
[Board "57"]

1. e4 {[%clk 0:03:00]}  c6 {[%clk 0:02:59]} 2. d3 {[%clk 0:02:38]}  d5 {[%clk 0:02:58]} 3. Qe2 {[%clk 0:02:37]}  dxe4 {[%clk 0:02:57]} 4. dxe4 {[%clk 0:02:37]}  e5 {[%clk 0:02:57]} 5. g3 {[%clk 0:02:36]}  Nf6 {[%clk 0:02:55]} 6. Bg2 {[%clk 0:02:31]}  Bc5 {[%clk 0:02:55]} 7. Nf3 {[%clk 0:02:28]}  Qc7 {[%clk 0:02:53]} 8. h3 {[%clk 0:02:24]}  O-O {[%clk 0:02:53]} 9. O-O {[%clk 0:02:23]}  a5 {[%clk 0:02:45]} 10. Bg5 {[%clk 0:02:23]}  Ne8 {[%clk 0:02:37]} 11. Nbd2 {[%clk 0:02:18]}  Be6 {[%clk 0:02:35]} 12. Nc4 {[%clk 0:02:16]}  f6 {[%clk 0:02:31]} 13. Bd2 {[%clk 0:02:10]}  b5 {[%clk 0:02:23]} 14. Ne3 {[%clk 0:02:10]}  Nd6 {[%clk 0:02:20]} 15. Nh4 {[%clk 0:02:09]}  Nc4 {[%clk 0:02:17]} 16. Nhf5 {[%clk 0:02:03]}  g6 {[%clk 0:02:01]} 17. Nh6+ {[%clk 0:00:48]}  Kg7 {[%clk 0:01:57]} 18. Rfd1 {[%clk 0:00:48]}  Nxd2 {[%clk 0:01:38]} 19. Qxd2 {[%clk 0:00:47]}  Na6 {[%clk 0:01:33]} 20. Nhg4 {[%clk 0:00:38]}  Rad8 {[%clk 0:01:31]} 21. Qe1 {[%clk 0:00:33]}  h5 {[%clk 0:01:27]} 22. Nh2 {[%clk 0:00:34]}  Nb4 {[%clk 0:01:20]} 23. a3 {[%clk 0:00:30]}  Na6 {[%clk 0:01:07]} 24. Nf3 {[%clk 0:00:22]}  a4 {[%clk 0:01:04]} 25. Nh4 {[%clk 0:00:21]}  Bd4 {[%clk 0:00:57]} 26. c3 {[%clk 0:00:20]}  Bb6 {[%clk 0:00:56]} 27. Qe2 {[%clk 0:00:19]}  Nc5 {[%clk 0:00:50]} 28. Qf3 {[%clk 0:00:11]}  Qf7 {[%clk 0:00:43]} 29. Kh2 {[%clk 0:00:09]}  Nb3 {[%clk 0:00:41]} 30. Rxd8 {[%clk 0:00:09]}  Rxd8 {[%clk 0:00:39]} 31. Re1 {[%clk 0:00:09]}  Nd2 {[%clk 0:00:36]} 32. Qe2 {[%clk 0:00:09]}  Nc4 {[%clk 0:00:36]} 33. Nxc4 {[%clk 0:00:07]}  Bxc4 {[%clk 0:00:37]} 34. Qc2 {[%clk 0:00:06]}  Qd7 {[%clk 0:00:27]} 35. Kg1 {[%clk 0:00:04]}  Qd2 {[%clk 0:00:27]} 36. Rc1 {[%clk 0:00:02]}  Bxf2+ {[%clk 0:00:26]} 37. Kh2 {[%clk 0:00:02]}  Bxg3+ {[%clk 0:00:24]} 38. Kxg3 {[%clk 0:00:02]}  Qf4# {[%clk 0:00:24]} 0-1


[Site "https://www.chess.com"]

[Event "Titled Tuesday Blitz August 1 Early 2023"]
[White "Tristan, Leonardo"]
[Black "Heinemann, Josefine"]
[WhiteFideId "113816"]
[BlackFideId "12900460"]
[WhiteElo "2765"]
[BlackElo "2534"]
[Result "1-0"]
[Round "2"]
[TimeControl "180+1"]
[Date "2023.08.01"]
[WhiteClock "0:00:36"]
[BlackClock "0:00:12"]
[Board "60"]

1. d4 {[%clk 0:03:00]}  Nf6 {[%clk 0:02:57]} 2. Nf3 {[%clk 0:03:01]}  d5 {[%clk 0:02:45]} 3. Bf4 {[%clk 0:03:01]}  c5 {[%clk 0:02:45]} 4. e3 {[%clk 0:03:01]}  Nc6 {[%clk 0:02:44]} 5. Nbd2 {[%clk 0:03:02]}  Qb6 {[%clk 0:02:31]} 6. dxc5 {[%clk 0:03:01]}  Qxb2 {[%clk 0:02:24]} 7. Rb1 {[%clk 0:03:01]}  Qc3 {[%clk 0:02:23]} 8. Bb5 {[%clk 0:03:01]}  g6 {[%clk 0:02:22]} 9. O-O {[%clk 0:02:52]}  Bg7 {[%clk 0:02:20]} 10. Ne5 {[%clk 0:02:52]}  Bd7 {[%clk 0:02:14]} 11. Nd3 {[%clk 0:02:45]}  O-O {[%clk 0:01:57]} 12. Bxc6 {[%clk 0:02:28]}  Bxc6 {[%clk 0:01:55]} 13. Be5 {[%clk 0:02:29]}  Qa5 {[%clk 0:01:54]} 14. Nb3 {[%clk 0:02:28]}  Qd8 {[%clk 0:01:53]} 15. Nd4 {[%clk 0:02:28]}  Ne4 {[%clk 0:01:41]} 16. Nxc6 {[%clk 0:02:16]}  bxc6 {[%clk 0:01:42]} 17. Rb7 {[%clk 0:02:17]}  Nxc5 {[%clk 0:01:24]} 18. Nxc5 {[%clk 0:02:01]}  Bxe5 {[%clk 0:01:23]} 19. Nd7 {[%clk 0:02:01]}  Qc8 {[%clk 0:01:17]} 20. Qb1 {[%clk 0:02:01]}  Bd6 {[%clk 0:01:02]} 21. Nxf8 {[%clk 0:02:01]}  Qxf8 {[%clk 0:01:02]} 22. c4 {[%clk 0:02:00]}  dxc4 {[%clk 0:00:59]} 23. Rc1 {[%clk 0:01:59]}  Qh6 {[%clk 0:00:54]} 24. h3 {[%clk 0:01:55]}  Qh4 {[%clk 0:00:52]} 25. Qc2 {[%clk 0:01:52]}  c5 {[%clk 0:00:35]} 26. Qxc4 {[%clk 0:01:51]}  Qf6 {[%clk 0:00:33]} 27. Qd5 {[%clk 0:01:35]}  Rd8 {[%clk 0:00:26]} 28. g3 {[%clk 0:01:23]}  a5 {[%clk 0:00:26]} 29. Kg2 {[%clk 0:01:22]}  a4 {[%clk 0:00:25]} 30. Ra7 {[%clk 0:01:15]}  Qb2 {[%clk 0:00:21]} 31. Rd1 {[%clk 0:01:09]}  Rb8 {[%clk 0:00:17]} 32. Rxa4 {[%clk 0:01:02]}  Qc2 {[%clk 0:00:15]} 33. Ra8 {[%clk 0:00:59]}  Rxa8 {[%clk 0:00:14]} 34. Qxa8+ {[%clk 0:00:59]}  Kg7 {[%clk 0:00:15]} 35. Qd5 {[%clk 0:01:00]}  c4 {[%clk 0:00:15]} 36. Qd2 {[%clk 0:00:55]}  Qa4 {[%clk 0:00:15]} 37. Rc1 {[%clk 0:00:35]}  Be5 {[%clk 0:00:14]} 38. Qc2 {[%clk 0:00:35]}  Qxc2 {[%clk 0:00:11]} 39. Rxc2 {[%clk 0:00:35]}  c3 {[%clk 0:00:12]} 40. a4 {[%clk 0:00:35]}  Kf8 {[%clk 0:00:13]} 41. a5 {[%clk 0:00:36]}  Ke8 {[%clk 0:00:12]} 42. a6 {[%clk 0:00:36]} 1-0


[Site "https://www.chess.com"]

[Event "Titled Tuesday Blitz August 1 Early 2023"]
[White "Cherniaiev, Tykhon"]
[Black "SmirnovAlexandrA"]
[WhiteFideId "14182360"]
[WhiteElo "2761"]
[BlackElo "2533"]
[Result "1-0"]
[Round "2"]
[TimeControl "180+1"]
[Date "2023.08.01"]
[WhiteClock "0:01:12"]
[BlackClock "0:00:22"]
[Board "62"]

1. Nf3 {[%clk 0:03:00]}  Nf6 {[%clk 0:02:52]} 2. d4 {[%clk 0:03:00]}  g6 {[%clk 0:02:53]} 3. c4 {[%clk 0:03:01]}  Bg7 {[%clk 0:02:53]} 4. g3 {[%clk 0:03:01]}  O-O {[%clk 0:02:53]} 5. Bg2 {[%clk 0:03:01]}  c5 {[%clk 0:02:48]} 6. O-O {[%clk 0:03:02]}  cxd4 {[%clk 0:02:47]} 7. Nxd4 {[%clk 0:03:03]}  Nc6 {[%clk 0:02:48]} 8. Nc3 {[%clk 0:03:03]}  Nxd4 {[%clk 0:02:40]} 9. Qxd4 {[%clk 0:03:03]}  d6 {[%clk 0:02:41]} 10. b3 {[%clk 0:02:53]}  Qa5 {[%clk 0:02:40]} 11. Bb2 {[%clk 0:02:51]}  Nd5 {[%clk 0:02:25]} 12. Qxd5 {[%clk 0:02:46]}  Bxc3 {[%clk 0:02:25]} 13. Qxa5 {[%clk 0:02:41]}  Bxa5 {[%clk 0:02:26]} 14. Rac1 {[%clk 0:02:42]}  Rb8 {[%clk 0:02:20]} 15. Bd4 {[%clk 0:02:39]}  a6 {[%clk 0:02:18]} 16. Ba7 {[%clk 0:02:27]}  Ra8 {[%clk 0:02:18]} 17. Be3 {[%clk 0:02:28]}  Rb8 {[%clk 0:02:17]} 18. c5 {[%clk 0:02:28]}  dxc5 {[%clk 0:02:05]} 19. Bxc5 {[%clk 0:02:09]}  Re8 {[%clk 0:02:02]} 20. Ba7 {[%clk 0:02:04]}  Ra8 {[%clk 0:02:01]} 21. Bd4 {[%clk 0:02:04]}  f6 {[%clk 0:01:51]} 22. Rfd1 {[%clk 0:02:03]}  e5 {[%clk 0:01:51]} 23. Be3 {[%clk 0:01:59]}  e4 {[%clk 0:01:46]} 24. Rd5 {[%clk 0:01:49]}  Bb4 {[%clk 0:01:42]} 25. Rc4 {[%clk 0:01:48]}  Be6 {[%clk 0:01:24]} 26. Bxe4 {[%clk 0:01:48]}  Bf8 {[%clk 0:01:06]} 27. Rc7 {[%clk 0:01:45]}  Bxd5 {[%clk 0:00:58]} 28. Bxd5+ {[%clk 0:01:46]}  Kh8 {[%clk 0:00:58]} 29. Bxb7 {[%clk 0:01:40]}  Rad8 {[%clk 0:00:58]} 30. Bxa6 {[%clk 0:01:40]}  Re7 {[%clk 0:00:54]} 31. Rc6 {[%clk 0:01:35]}  Kg7 {[%clk 0:00:45]} 32. Bc4 {[%clk 0:01:34]}  Red7 {[%clk 0:00:40]} 33. a4 {[%clk 0:01:31]}  Rd6 {[%clk 0:00:41]} 34. Rc7+ {[%clk 0:01:25]}  R6d7 {[%clk 0:00:40]} 35. Rxd7+ {[%clk 0:01:25]}  Rxd7 {[%clk 0:00:40]} 36. a5 {[%clk 0:01:26]}  Rc7 {[%clk 0:00:34]} 37. a6 {[%clk 0:01:20]}  Bc5 {[%clk 0:00:35]} 38. Bxc5 {[%clk 0:01:19]}  Rxc5 {[%clk 0:00:36]} 39. Bd3 {[%clk 0:01:19]}  Kf7 {[%clk 0:00:32]} 40. b4 {[%clk 0:01:18]}  Rc1+ {[%clk 0:00:30]} 41. Kg2 {[%clk 0:01:18]}  Ra1 {[%clk 0:00:29]} 42. b5 {[%clk 0:01:12]}  Ke7 {[%clk 0:00:29]} 43. b6 {[%clk 0:01:12]}  Kd7 {[%clk 0:00:28]} 44. a7 {[%clk 0:01:12]}  Kc6 {[%clk 0:00:22]} 45. Be4+ {[%clk 0:01:12]} 1-0


[Site "https://www.chess.com"]

[Event "Titled Tuesday Blitz August 1 Early 2023"]
[White "Perez, Maximiliano"]
[Black "Stribuk, Artiom"]
[WhiteFideId "117234"]
[BlackFideId "13515659"]
[WhiteElo "2530"]
[BlackElo "2759"]
[Result "1-0"]
[Round "2"]
[TimeControl "180+1"]
[Date "2023.08.01"]
[WhiteClock "0:00:38"]
[BlackClock "0:00:00"]
[Board "65"]

1. e4 {[%clk 0:03:00]}  c5 {[%clk 0:02:58]} 2. Nf3 {[%clk 0:03:00]}  d6 {[%clk 0:02:58]} 3. g3 {[%clk 0:02:58]}  Nc6 {[%clk 0:02:54]} 4. Bg2 {[%clk 0:02:58]}  Nf6 {[%clk 0:02:51]} 5. d3 {[%clk 0:02:56]}  Bg4 {[%clk 0:02:38]} 6. h3 {[%clk 0:02:55]}  Bh5 {[%clk 0:02:37]} 7. O-O {[%clk 0:02:52]}  e6 {[%clk 0:02:37]} 8. c3 {[%clk 0:02:52]}  Be7 {[%clk 0:02:36]} 9. Re1 {[%clk 0:02:53]}  O-O {[%clk 0:02:21]} 10. a4 {[%clk 0:02:48]}  d5 {[%clk 0:02:15]} 11. Nbd2 {[%clk 0:02:30]}  Qc7 {[%clk 0:02:05]} 12. Nf1 {[%clk 0:02:20]}  Rfd8 {[%clk 0:01:59]} 13. Qc2 {[%clk 0:02:17]}  c4 {[%clk 0:01:51]} 14. exd5 {[%clk 0:01:38]}  cxd3 {[%clk 0:01:00]} 15. Qxd3 {[%clk 0:01:39]}  Rxd5 {[%clk 0:01:00]} 16. Qc4 {[%clk 0:01:34]}  Rad8 {[%clk 0:00:59]} 17. Bf4 {[%clk 0:01:33]}  Qb6 {[%clk 0:00:57]} 18. b4 {[%clk 0:01:29]}  Rd3 {[%clk 0:00:44]} 19. Be3 {[%clk 0:01:26]}  Qc7 {[%clk 0:00:18]} 20. Nd4 {[%clk 0:01:25]}  Rxe3 {[%clk 0:00:07]} 21. Nxe3 {[%clk 0:01:24]}  Rc8 {[%clk 0:00:05]} 22. Nxc6 {[%clk 0:01:24]}  bxc6 {[%clk 0:00:06]} 23. Nc2 {[%clk 0:01:10]}  Nd5 {[%clk 0:00:07]} 24. Nd4 {[%clk 0:01:07]}  Bf6 {[%clk 0:00:07]} 25. Rac1 {[%clk 0:00:51]}  h6 {[%clk 0:00:07]} 26. b5 {[%clk 0:00:51]}  cxb5 {[%clk 0:00:07]} 27. Qxc7 {[%clk 0:00:50]}  Nxc7 {[%clk 0:00:07]} 28. axb5 {[%clk 0:00:46]}  Rd8 {[%clk 0:00:04]} 29. Nc6 {[%clk 0:00:42]}  Rd2 {[%clk 0:00:04]} 30. Nxa7 {[%clk 0:00:40]}  Be7 {[%clk 0:00:05]} 31. b6 {[%clk 0:00:40]}  Na6 {[%clk 0:00:05]} 32. Re5 {[%clk 0:00:38]}  Bg6 {[%clk 0:00:04]} 33. b7 {[%clk 0:00:38]}  Rb2 {[%clk 0:00:04]} 34. Rb5 {[%clk 0:00:37]}  Rxb5 {[%clk 0:00:00]} 35. Nxb5 {[%clk 0:00:38]} 1-0


[Site "https://www.chess.com"]